[Event "Titled Tuesday Blitz February 15 Early 2022"]
[White "Qashashvili, Alexandre"]
[Black "Bettalli, Francesco"]
[WhiteFideId "13600842"]
[BlackFideId "2816453"]
[WhiteElo "2316"]
[BlackElo "2216"]
[Result "1/2-1/2"]
[Round "06"]
[TimeControl "180+1"]
[Date "2022.02.15"]
[WhiteClock "0:00:47"]
[BlackClock "0:01:16"]

1. e4 {[%clk 0:03:00]}  e5 {[%clk 0:02:58]} 2. Nf3 {[%clk 0:03:00]}  Nf6 {[%clk 0:02:58]} 3. Nc3 {[%clk 0:02:55]}  Bc5 {[%clk 0:02:57]} 4. Bc4 {[%clk 0:02:53]}  O-O {[%clk 0:02:55]} 5. d3 {[%clk 0:02:53]}  d6 {[%clk 0:02:54]} 6. Bg5 {[%clk 0:02:52]}  h6 {[%clk 0:02:52]} 7. Bh4 {[%clk 0:02:51]}  c6 {[%clk 0:02:47]} 8. O-O {[%clk 0:02:50]}  Nbd7 {[%clk 0:02:36]} 9. h3 {[%clk 0:02:50]}  Re8 {[%clk 0:02:35]} 10. Ne2 {[%clk 0:02:46]}  Nf8 {[%clk 0:02:35]} 11. c3 {[%clk 0:02:46]}  g5 {[%clk 0:02:35]} 12. Bg3 {[%clk 0:02:45]}  Ng6 {[%clk 0:02:35]} 13. Qd2 {[%clk 0:02:28]}  Nf4 {[%clk 0:02:33]} 14. Nxf4 {[%clk 0:02:28]}  exf4 {[%clk 0:02:34]} 15. Bh2 {[%clk 0:02:27]}  Be6 {[%clk 0:02:28]} 16. Bxe6 {[%clk 0:02:26]}  fxe6 {[%clk 0:02:29]} 17. d4 {[%clk 0:02:22]}  Bb6 {[%clk 0:02:29]} 18. e5 {[%clk 0:02:19]}  Ne4 {[%clk 0:02:28]} 19. Qd3 {[%clk 0:02:15]}  d5 {[%clk 0:02:28]} 20. Nd2 {[%clk 0:02:14]}  Nxd2 {[%clk 0:02:23]} 21. Qxd2 {[%clk 0:02:15]}  Rf8 {[%clk 0:02:20]} 22. f3 {[%clk 0:02:15]}  c5 {[%clk 0:02:19]} 23. Kh1 {[%clk 0:02:14]}  Qe7 {[%clk 0:02:18]} 24. Bg1 {[%clk 0:02:13]}  h5 {[%clk 0:02:17]} 25. dxc5 {[%clk 0:02:12]}  Bxc5 {[%clk 0:02:17]} 26. Bxc5 {[%clk 0:02:12]}  Qxc5 {[%clk 0:02:18]} 27. Qd4 {[%clk 0:02:12]}  Rac8 {[%clk 0:02:16]} 28. Rac1 {[%clk 0:02:09]}  Rc6 {[%clk 0:02:15]} 29. Rfd1 {[%clk 0:02:07]}  Rfc8 {[%clk 0:02:14]} 30. h4 {[%clk 0:02:05]}  Qxd4 {[%clk 0:02:07]} 31. Rxd4 {[%clk 0:02:06]}  Rc4 {[%clk 0:02:03]} 32. Rcd1 {[%clk 0:02:03]}  Kf7 {[%clk 0:02:03]} 33. hxg5 {[%clk 0:01:57]}  Kg6 {[%clk 0:02:02]} 34. b3 {[%clk 0:01:54]}  Rxd4 {[%clk 0:01:59]} 35. Rxd4 {[%clk 0:01:53]}  Kxg5 {[%clk 0:01:59]} 36. c4 {[%clk 0:01:51]}  Rc5 {[%clk 0:01:55]} 37. cxd5 {[%clk 0:01:49]}  Rxd5 {[%clk 0:01:55]} 38. Rc4 {[%clk 0:01:33]}  Rxe5 {[%clk 0:01:55]} 39. Rc7 {[%clk 0:01:32]}  Re2 {[%clk 0:01:50]} 40. Rxb7 {[%clk 0:01:29]}  Rxa2 {[%clk 0:01:50]} 41. Kh2 {[%clk 0:01:30]}  e5 {[%clk 0:01:45]} 42. Kh3 {[%clk 0:01:25]}  Ra1 {[%clk 0:01:42]} 43. Kh2 {[%clk 0:01:25]}  h4 {[%clk 0:01:40]} 44. Re7 {[%clk 0:01:22]}  Kf6 {[%clk 0:01:40]} 45. Rh7 {[%clk 0:01:21]}  Ra3 {[%clk 0:01:40]} 46. b4 {[%clk 0:01:18]}  Ra4 {[%clk 0:01:39]} 47. b5 {[%clk 0:01:18]}  Ra5 {[%clk 0:01:39]} 48. b6 {[%clk 0:01:16]}  axb6 {[%clk 0:01:37]} 49. Rh6+ {[%clk 0:01:15]}  Kg5 {[%clk 0:01:37]} 50. Rxb6 {[%clk 0:01:16]}  Rd5 {[%clk 0:01:37]} 51. Rb8 {[%clk 0:01:15]}  Rd1 {[%clk 0:01:36]} 52. Re8 {[%clk 0:01:13]}  Kf6 {[%clk 0:01:36]} 53. Rh8 {[%clk 0:01:12]}  Kg5 {[%clk 0:01:36]} 54. Re8 {[%clk 0:01:12]}  Re1 {[%clk 0:01:36]} 55. Rg8+ {[%clk 0:01:10]}  Kh5 {[%clk 0:01:36]} 56. Rh8+ {[%clk 0:01:10]}  Kg5 {[%clk 0:01:36]} 57. Rg8+ {[%clk 0:01:11]}  Kf5 {[%clk 0:01:36]} 58. Rh8 {[%clk 0:01:11]}  e4 {[%clk 0:01:36]} 59. fxe4+ {[%clk 0:01:09]}  Rxe4 {[%clk 0:01:37]} 60. Rxh4 {[%clk 0:01:09]}  Re2 {[%clk 0:01:37]} 61. Rh8 {[%clk 0:01:07]}  Kg5 {[%clk 0:01:34]} 62. Rg8+ {[%clk 0:01:07]}  Kf6 {[%clk 0:01:34]} 63. Rf8+ {[%clk 0:01:04]}  Kg5 {[%clk 0:01:35]} 64. Kh3 {[%clk 0:01:04]}  Re1 {[%clk 0:01:34]} 65. Rg8+ {[%clk 0:01:02]}  Kf5 {[%clk 0:01:33]} 66. Rf8+ {[%clk 0:01:01]}  Kg5 {[%clk 0:01:34]} 67. Rg8+ {[%clk 0:01:00]}  Kh5 {[%clk 0:01:34]} 68. Rh8+ {[%clk 0:00:55]}  Kg6 {[%clk 0:01:35]} 69. Rf8 {[%clk 0:00:47]}  Kg5 {[%clk 0:01:16]} 1/2-1/2


[Site "https://www.chess.com"]

[Event "Titled Tuesday Blitz February 15 Early 2022"]
[White "Ratnakaran, K."]
[Black "Kopylov, Alexander A."]
[WhiteFideId "5005507"]
[BlackFideId "4164857"]
[WhiteElo "2391"]
[BlackElo "2436"]
[Result "0-1"]
[Round "06"]
[TimeControl "180+1"]
[Date "2022.02.15"]
[WhiteClock "0:00:34"]
[BlackClock "0:00:21"]

1. e4 {[%clk 0:02:57]}  c6 {[%clk 0:02:59]} 2. Nf3 {[%clk 0:02:55]}  d5 {[%clk 0:02:59]} 3. Nc3 {[%clk 0:02:55]}  dxe4 {[%clk 0:03:00]} 4. Nxe4 {[%clk 0:02:55]}  Nf6 {[%clk 0:03:01]} 5. Ng3 {[%clk 0:02:56]}  g6 {[%clk 0:03:01]} 6. d4 {[%clk 0:02:56]}  Bg7 {[%clk 0:03:01]} 7. c3 {[%clk 0:02:56]}  O-O {[%clk 0:03:02]} 8. h4 {[%clk 0:02:56]}  Bg4 {[%clk 0:03:01]} 9. Be2 {[%clk 0:02:56]}  Nbd7 {[%clk 0:03:00]} 10. Be3 {[%clk 0:02:53]}  Bxf3 {[%clk 0:02:59]} 11. Bxf3 {[%clk 0:02:50]}  e5 {[%clk 0:03:00]} 12. h5 {[%clk 0:02:50]}  exd4 {[%clk 0:03:00]} 13. cxd4 {[%clk 0:02:50]}  Qa5+ {[%clk 0:02:59]} 14. Kf1 {[%clk 0:02:49]}  Rfe8 {[%clk 0:02:56]} 15. hxg6 {[%clk 0:02:48]}  hxg6 {[%clk 0:02:56]} 16. Kg1 {[%clk 0:02:47]}  Qc7 {[%clk 0:02:51]} 17. Qc1 {[%clk 0:02:40]}  Rxe3 {[%clk 0:02:33]} 18. Qxe3 {[%clk 0:02:39]}  Re8 {[%clk 0:02:34]} 19. Qg5 {[%clk 0:02:35]}  Qb6 {[%clk 0:02:30]} 20. d5 {[%clk 0:02:19]}  Qxb2 {[%clk 0:02:27]} 21. Rd1 {[%clk 0:02:17]}  Re5 {[%clk 0:02:15]} 22. Qc1 {[%clk 0:01:55]}  Qxc1 {[%clk 0:02:14]} 23. Rxc1 {[%clk 0:01:55]}  Nxd5 {[%clk 0:02:14]} 24. Rh4 {[%clk 0:01:52]}  N7b6 {[%clk 0:02:07]} 25. Re4 {[%clk 0:01:51]}  Kf8 {[%clk 0:02:04]} 26. Rxe5 {[%clk 0:01:50]}  Bxe5 {[%clk 0:02:05]} 27. Ne4 {[%clk 0:01:50]}  Ke7 {[%clk 0:02:05]} 28. Nc5 {[%clk 0:01:50]}  Bd4 {[%clk 0:01:49]} 29. Nxb7 {[%clk 0:01:48]}  Kd7 {[%clk 0:01:49]} 30. Na5 {[%clk 0:01:43]}  c5 {[%clk 0:01:49]} 31. Nb3 {[%clk 0:01:42]}  Kd6 {[%clk 0:01:49]} 32. Rd1 {[%clk 0:01:34]}  Bc3 {[%clk 0:01:17]} 33. Nc1 {[%clk 0:01:07]}  c4 {[%clk 0:01:15]} 34. Ne2 {[%clk 0:01:06]}  Be5 {[%clk 0:01:10]} 35. Bxd5 {[%clk 0:01:05]}  Nxd5 {[%clk 0:01:10]} 36. f4 {[%clk 0:01:06]}  Bb2 {[%clk 0:01:07]} 37. f5 {[%clk 0:01:06]}  Kc5 {[%clk 0:00:49]} 38. fxg6 {[%clk 0:01:06]}  fxg6 {[%clk 0:00:49]} 39. Kf2 {[%clk 0:01:05]}  c3 {[%clk 0:00:48]} 40. Nd4 {[%clk 0:01:05]}  Nb4 {[%clk 0:00:42]} 41. Nb3+ {[%clk 0:00:54]}  Kb5 {[%clk 0:00:40]} 42. Rd7 {[%clk 0:00:51]}  a5 {[%clk 0:00:31]} 43. Rb7+ {[%clk 0:00:41]}  Ka4 {[%clk 0:00:26]} 44. Ra7 {[%clk 0:00:40]}  Nxa2 {[%clk 0:00:26]} 45. Nxa5 {[%clk 0:00:38]}  c2 {[%clk 0:00:26]} 46. Nc4+ {[%clk 0:00:38]}  Kb3 {[%clk 0:00:25]} 47. Nxb2 {[%clk 0:00:37]}  c1=Q {[%clk 0:00:23]} 48. Rb7+ {[%clk 0:00:37]}  Ka3 {[%clk 0:00:22]} 49. Nd3 {[%clk 0:00:34]}  Qd2+ {[%clk 0:00:20]} 50. Kg1 {[%clk 0:00:34]}  Qxd3 {[%clk 0:00:21]} 0-1


[Site "https://www.chess.com"]

[Event "Titled Tuesday Blitz February 15 Early 2022"]
[White "Redzisz, Michal"]
[Black "Rodchenkov, Sergey D."]
[WhiteFideId "21816107"]
[BlackFideId "4168712"]
[WhiteElo "1961"]
[BlackElo "2306"]
[Result "0-1"]
[Round "06"]
[TimeControl "180+1"]
[Date "2022.02.15"]
[WhiteClock "0:00:04"]
[BlackClock "0:00:04"]

1. c4 {[%clk 0:03:00]}  e5 {[%clk 0:02:59]} 2. Nc3 {[%clk 0:03:00]}  Nf6 {[%clk 0:03:00]} 3. g3 {[%clk 0:03:00]}  c6 {[%clk 0:03:00]} 4. Bg2 {[%clk 0:03:01]}  Bb4 {[%clk 0:02:27]} 5. Nf3 {[%clk 0:02:58]}  e4 {[%clk 0:02:25]} 6. Nd4 {[%clk 0:02:53]}  Bxc3 {[%clk 0:02:11]} 7. dxc3 {[%clk 0:02:51]}  h6 {[%clk 0:02:11]} 8. O-O {[%clk 0:02:50]}  O-O {[%clk 0:02:11]} 9. c5 {[%clk 0:02:46]}  a5 {[%clk 0:02:07]} 10. Qc2 {[%clk 0:02:46]}  Re8 {[%clk 0:02:06]} 11. Bf4 {[%clk 0:02:45]}  Na6 {[%clk 0:01:53]} 12. Bd6 {[%clk 0:02:45]}  Nc7 {[%clk 0:01:53]} 13. b4 {[%clk 0:02:43]}  Ncd5 {[%clk 0:01:50]} 14. a3 {[%clk 0:02:41]}  a4 {[%clk 0:01:40]} 15. Rad1 {[%clk 0:02:38]}  b5 {[%clk 0:01:36]} 16. cxb6 {[%clk 0:02:37]}  Nxb6 {[%clk 0:01:34]} 17. c4 {[%clk 0:02:34]}  Ba6 {[%clk 0:01:30]} 18. b5 {[%clk 0:02:17]}  cxb5 {[%clk 0:01:29]} 19. cxb5 {[%clk 0:02:18]}  Rc8 {[%clk 0:01:28]} 20. Qb1 {[%clk 0:01:58]}  Bb7 {[%clk 0:01:27]} 21. Nf5 {[%clk 0:01:58]}  Bd5 {[%clk 0:01:18]} 22. Ne3 {[%clk 0:01:40]}  Bb3 {[%clk 0:01:09]} 23. Rd4 {[%clk 0:01:40]}  Nc4 {[%clk 0:00:59]} 24. Nxc4 {[%clk 0:01:37]}  Bxc4 {[%clk 0:00:55]} 25. Bxe4 {[%clk 0:01:33]}  Bxe2 {[%clk 0:00:43]} 26. Re1 {[%clk 0:01:34]}  Nxe4 {[%clk 0:00:42]} 27. Rxe4 {[%clk 0:01:25]}  Rxe4 {[%clk 0:00:40]} 28. Qxe4 {[%clk 0:01:26]}  Bxb5 {[%clk 0:00:37]} 29. Qe7 {[%clk 0:01:17]}  Qxe7 {[%clk 0:00:36]} 30. Bxe7 {[%clk 0:01:18]}  Bc4 {[%clk 0:00:27]} 31. Bd6 {[%clk 0:01:14]}  Rc6 {[%clk 0:00:23]} 32. Rd1 {[%clk 0:01:13]}  Be6 {[%clk 0:00:20]} 33. Kg2 {[%clk 0:01:09]}  h5 {[%clk 0:00:20]} 34. h4 {[%clk 0:01:09]}  Kh7 {[%clk 0:00:20]} 35. Rd2 {[%clk 0:01:07]}  Kg6 {[%clk 0:00:20]} 36. Kf3 {[%clk 0:01:03]}  Rc3+ {[%clk 0:00:20]} 37. Kg2 {[%clk 0:01:01]}  Rb3 {[%clk 0:00:21]} 38. f3 {[%clk 0:00:57]}  Bc4 {[%clk 0:00:21]} 39. Kf2 {[%clk 0:00:55]}  Bb5 {[%clk 0:00:21]} 40. Rd4 {[%clk 0:00:27]}  Bc6 {[%clk 0:00:20]} 41. Rf4 {[%clk 0:00:28]}  f6 {[%clk 0:00:21]} 42. g4 {[%clk 0:00:24]}  Rd3 {[%clk 0:00:21]} 43. Bf8 {[%clk 0:00:20]}  Kf7 {[%clk 0:00:19]} 44. Bb4 {[%clk 0:00:19]}  hxg4 {[%clk 0:00:19]} 45. fxg4 {[%clk 0:00:19]}  Rb3 {[%clk 0:00:17]} 46. g5 {[%clk 0:00:19]}  Bd5 {[%clk 0:00:16]} 47. gxf6 {[%clk 0:00:19]}  gxf6 {[%clk 0:00:17]} 48. h5 {[%clk 0:00:19]}  Rh3 {[%clk 0:00:14]} 49. Rf5 {[%clk 0:00:20]}  Bc6 {[%clk 0:00:09]} 50. Bc5 {[%clk 0:00:15]}  Ke6 {[%clk 0:00:10]} 51. Rf4 {[%clk 0:00:12]}  Rxh5 {[%clk 0:00:10]} 52. Bd4 {[%clk 0:00:13]}  f5 {[%clk 0:00:08]} 53. Bc5 {[%clk 0:00:14]}  Rh2+ {[%clk 0:00:08]} 54. Ke3 {[%clk 0:00:14]}  Rc2 {[%clk 0:00:09]} 55. Bb4 {[%clk 0:00:13]}  Be4 {[%clk 0:00:09]} 56. Rh4 {[%clk 0:00:13]}  d5 {[%clk 0:00:09]} 57. Rh6+ {[%clk 0:00:14]}  Kf7 {[%clk 0:00:07]} 58. Rh7+ {[%clk 0:00:14]}  Kg6 {[%clk 0:00:08]} 59. Rd7 {[%clk 0:00:14]}  Rb2 {[%clk 0:00:08]} 60. Rd6+ {[%clk 0:00:14]}  Kg5 {[%clk 0:00:09]} 61. Bc3 {[%clk 0:00:12]}  f4+ {[%clk 0:00:07]} 62. Kd4 {[%clk 0:00:12]}  Rb3 {[%clk 0:00:07]} 63. Bb4 {[%clk 0:00:10]}  f3 {[%clk 0:00:07]} 64. Rd8 {[%clk 0:00:10]}  f2 {[%clk 0:00:05]} 65. Rg8+ {[%clk 0:00:10]}  Kh6 {[%clk 0:00:05]} 66. Rf8 {[%clk 0:00:10]}  Rf3 {[%clk 0:00:04]} 67. Rh8+ {[%clk 0:00:11]}  Kg7 {[%clk 0:00:04]} 68. Ra8 {[%clk 0:00:04]}  f1=Q {[%clk 0:00:04]} 0-1


[Site "https://www.chess.com"]

[Event "Titled Tuesday Blitz February 15 Early 2022"]
[White "Rosenberg, Evan S"]
[Black "Tsyhanchuk, Stanislav"]
[WhiteFideId "2019299"]
[BlackFideId "13505130"]
[WhiteElo "2342"]
[BlackElo "2078"]
[Result "1-0"]
[Round "06"]
[TimeControl "180+1"]
[Date "2022.02.15"]
[WhiteClock "0:00:12"]
[BlackClock "0:00:21"]

1. Nf3 {[%clk 0:03:00]}  Nf6 {[%clk 0:02:57]} 2. c4 {[%clk 0:03:00]}  c6 {[%clk 0:02:56]} 3. d4 {[%clk 0:03:00]}  d5 {[%clk 0:02:56]} 4. cxd5 {[%clk 0:03:00]}  cxd5 {[%clk 0:02:56]} 5. Nc3 {[%clk 0:03:01]}  Nc6 {[%clk 0:02:53]} 6. Bf4 {[%clk 0:03:01]}  a6 {[%clk 0:02:54]} 7. e3 {[%clk 0:03:01]}  Bf5 {[%clk 0:02:52]} 8. Be2 {[%clk 0:02:35]}  e6 {[%clk 0:02:44]} 9. O-O {[%clk 0:02:35]}  Bb4 {[%clk 0:02:39]} 10. Rc1 {[%clk 0:02:31]}  O-O {[%clk 0:02:35]} 11. a3 {[%clk 0:02:30]}  Bd6 {[%clk 0:02:34]} 12. Bg5 {[%clk 0:02:22]}  h6 {[%clk 0:02:31]} 13. Bh4 {[%clk 0:02:20]}  Be7 {[%clk 0:02:31]} 14. Na4 {[%clk 0:02:08]}  Ne4 {[%clk 0:02:24]} 15. Bxe7 {[%clk 0:02:03]}  Qxe7 {[%clk 0:02:23]} 16. Nb6 {[%clk 0:01:47]}  Rad8 {[%clk 0:02:20]} 17. Bd3 {[%clk 0:01:18]}  Bg4 {[%clk 0:02:12]} 18. Be2 {[%clk 0:01:09]}  Qc7 {[%clk 0:02:06]} 19. Na4 {[%clk 0:01:03]}  Qa5 {[%clk 0:01:59]} 20. Nc5 {[%clk 0:01:00]}  Nxc5 {[%clk 0:01:50]} 21. Rxc5 {[%clk 0:00:59]}  Qb6 {[%clk 0:01:48]} 22. b4 {[%clk 0:00:55]}  f5 {[%clk 0:01:38]} 23. Qc2 {[%clk 0:00:46]}  f4 {[%clk 0:01:34]} 24. b5 {[%clk 0:00:32]}  axb5 {[%clk 0:01:20]} 25. Bxb5 {[%clk 0:00:26]}  Bxf3 {[%clk 0:01:05]} 26. gxf3 {[%clk 0:00:27]}  Ne7 {[%clk 0:00:51]} 27. Bd3 {[%clk 0:00:20]}  Nf5 {[%clk 0:00:43]} 28. Bxf5 {[%clk 0:00:19]}  Rxf5 {[%clk 0:00:39]} 29. e4 {[%clk 0:00:19]}  Rg5+ {[%clk 0:00:38]} 30. Kh1 {[%clk 0:00:19]}  Qd6 {[%clk 0:00:32]} 31. e5 {[%clk 0:00:18]}  Qe7 {[%clk 0:00:25]} 32. Rc7 {[%clk 0:00:18]}  Qe8 {[%clk 0:00:24]} 33. Rg1 {[%clk 0:00:15]}  Rxg1+ {[%clk 0:00:19]} 34. Kxg1 {[%clk 0:00:16]}  Qh5 {[%clk 0:00:19]} 35. Kg2 {[%clk 0:00:13]}  Qg5+ {[%clk 0:00:19]} 36. Kf1 {[%clk 0:00:13]}  Qh5 {[%clk 0:00:18]} 37. Ke2 {[%clk 0:00:12]}  b5 {[%clk 0:00:16]} 38. Qc6 {[%clk 0:00:11]}  Qf5 {[%clk 0:00:16]} 39. Rc8 {[%clk 0:00:09]}  Rxc8 {[%clk 0:00:15]} 40. Qxc8+ {[%clk 0:00:10]}  Kh7 {[%clk 0:00:16]} 41. Qc3 {[%clk 0:00:08]}  Qb1 {[%clk 0:00:15]} 42. Qd3+ {[%clk 0:00:08]}  Qxd3+ {[%clk 0:00:15]} 43. Kxd3 {[%clk 0:00:09]}  Kg6 {[%clk 0:00:16]} 44. Kc3 {[%clk 0:00:10]}  Kf7 {[%clk 0:00:16]} 45. Kb4 {[%clk 0:00:10]}  Ke7 {[%clk 0:00:16]} 46. Kxb5 {[%clk 0:00:11]}  Kd7 {[%clk 0:00:16]} 47. Kb6 {[%clk 0:00:11]}  Kc8 {[%clk 0:00:16]} 48. Kc6 {[%clk 0:00:12]}  g5 {[%clk 0:00:16]} 49. Kd6 {[%clk 0:00:12]}  h5 {[%clk 0:00:17]} 50. Kxe6 {[%clk 0:00:11]}  g4 {[%clk 0:00:18]} 51. fxg4 {[%clk 0:00:11]}  hxg4 {[%clk 0:00:19]} 52. Kf5 {[%clk 0:00:11]}  g3 {[%clk 0:00:20]} 53. hxg3 {[%clk 0:00:11]}  fxg3 {[%clk 0:00:20]} 54. fxg3 {[%clk 0:00:11]}  Kb7 {[%clk 0:00:21]} 55. g4 {[%clk 0:00:12]} 1-0


[Site "https://www.chess.com"]

[Event "Titled Tuesday Blitz February 15 Early 2022"]
[White "Rostovtsev, Dmitry"]
[Black "Van Foreest, Jorden"]
[WhiteFideId "34278320"]
[BlackFideId "1039784"]
[WhiteElo "2218"]
[BlackElo "2609"]
[Result "1/2-1/2"]
[Round "06"]
[TimeControl "180+1"]
[Date "2022.02.15"]
[WhiteClock "0:00:07"]
[BlackClock "0:00:04"]

1. e4 {[%clk 0:02:53]}  c6 {[%clk 0:02:59]} 2. Nf3 {[%clk 0:02:52]}  d5 {[%clk 0:03:00]} 3. Nc3 {[%clk 0:02:52]}  Bg4 {[%clk 0:02:59]} 4. h3 {[%clk 0:02:52]}  Bxf3 {[%clk 0:02:59]} 5. Qxf3 {[%clk 0:02:53]}  e6 {[%clk 0:03:00]} 6. g3 {[%clk 0:02:53]}  Bc5 {[%clk 0:03:00]} 7. Bg2 {[%clk 0:02:53]}  Ne7 {[%clk 0:03:00]} 8. O-O {[%clk 0:02:53]}  O-O {[%clk 0:03:00]} 9. Rd1 {[%clk 0:02:52]}  Nd7 {[%clk 0:02:58]} 10. d4 {[%clk 0:02:51]}  Bb6 {[%clk 0:02:56]} 11. Qe2 {[%clk 0:02:50]}  Ba5 {[%clk 0:02:54]} 12. Bd2 {[%clk 0:02:48]}  dxe4 {[%clk 0:02:53]} 13. Nxe4 {[%clk 0:02:47]}  Bxd2 {[%clk 0:02:54]} 14. Rxd2 {[%clk 0:02:48]}  a5 {[%clk 0:02:43]} 15. c4 {[%clk 0:02:41]}  a4 {[%clk 0:02:43]} 16. Rad1 {[%clk 0:02:38]}  Qa5 {[%clk 0:02:42]} 17. Nd6 {[%clk 0:02:37]}  Qb4 {[%clk 0:02:37]} 18. d5 {[%clk 0:02:31]}  cxd5 {[%clk 0:02:16]} 19. cxd5 {[%clk 0:02:30]}  e5 {[%clk 0:01:24]} 20. Nc4 {[%clk 0:01:56]}  Nf5 {[%clk 0:01:23]} 21. Nxe5 {[%clk 0:01:46]}  Rfe8 {[%clk 0:01:11]} 22. Qg4 {[%clk 0:01:43]}  Qxg4 {[%clk 0:01:11]} 23. Nxg4 {[%clk 0:01:42]}  Nd6 {[%clk 0:01:11]} 24. Ne3 {[%clk 0:01:39]}  Rac8 {[%clk 0:01:12]} 25. h4 {[%clk 0:01:35]}  g6 {[%clk 0:01:08]} 26. Rd4 {[%clk 0:01:33]}  b5 {[%clk 0:01:07]} 27. b3 {[%clk 0:01:32]}  axb3 {[%clk 0:01:06]} 28. axb3 {[%clk 0:01:33]}  Rc3 {[%clk 0:01:07]} 29. R4d3 {[%clk 0:01:30]}  Rec8 {[%clk 0:01:06]} 30. h5 {[%clk 0:01:28]}  Kg7 {[%clk 0:01:05]} 31. hxg6 {[%clk 0:01:28]}  hxg6 {[%clk 0:01:05]} 32. Bf1 {[%clk 0:01:19]}  Rxd3 {[%clk 0:01:05]} 33. Rxd3 {[%clk 0:01:18]}  Ne5 {[%clk 0:01:04]} 34. Rd1 {[%clk 0:01:15]}  Rc3 {[%clk 0:01:05]} 35. Rb1 {[%clk 0:01:13]}  Nf3+ {[%clk 0:01:04]} 36. Kg2 {[%clk 0:01:11]}  Nd2 {[%clk 0:01:05]} 37. Rb2 {[%clk 0:01:11]}  N2e4 {[%clk 0:00:56]} 38. b4 {[%clk 0:01:08]}  Rc1 {[%clk 0:00:47]} 39. Bd3 {[%clk 0:01:02]}  Nc3 {[%clk 0:00:30]} 40. Rb3 {[%clk 0:00:50]}  Kf6 {[%clk 0:00:25]} 41. f4 {[%clk 0:00:38]}  Na4 {[%clk 0:00:18]} 42. Ra3 {[%clk 0:00:38]}  Rc3 {[%clk 0:00:15]} 43. Rxc3 {[%clk 0:00:35]}  Nxc3 {[%clk 0:00:16]} 44. Kf3 {[%clk 0:00:35]}  Na2 {[%clk 0:00:16]} 45. Nc2 {[%clk 0:00:35]}  Nc3 {[%clk 0:00:17]} 46. Nd4 {[%clk 0:00:34]}  Nxd5 {[%clk 0:00:15]} 47. Nxb5 {[%clk 0:00:35]}  Ne8 {[%clk 0:00:13]} 48. Be4 {[%clk 0:00:29]}  Nxb4 {[%clk 0:00:13]} 49. Nd4 {[%clk 0:00:29]}  Nd6 {[%clk 0:00:13]} 50. Ne2 {[%clk 0:00:27]}  Nc4 {[%clk 0:00:12]} 51. Nc3 {[%clk 0:00:25]}  Kg7 {[%clk 0:00:11]} 52. Nd5 {[%clk 0:00:18]}  Nc6 {[%clk 0:00:11]} 53. Nc3 {[%clk 0:00:14]}  Nd4+ {[%clk 0:00:11]} 54. Kf2 {[%clk 0:00:14]}  Nd6 {[%clk 0:00:11]} 55. Bd3 {[%clk 0:00:14]}  Ne6 {[%clk 0:00:09]} 56. Ne4 {[%clk 0:00:14]}  Nb7 {[%clk 0:00:07]} 57. Bc4 {[%clk 0:00:14]}  Nd4 {[%clk 0:00:07]} 58. Ng5 {[%clk 0:00:13]}  Nd6 {[%clk 0:00:07]} 59. Bd5 {[%clk 0:00:13]}  Kf6 {[%clk 0:00:07]} 60. Ne4+ {[%clk 0:00:13]}  Nxe4+ {[%clk 0:00:07]} 61. Bxe4 {[%clk 0:00:14]}  Ke6 {[%clk 0:00:08]} 62. Ke3 {[%clk 0:00:13]}  Nb5 {[%clk 0:00:08]} 63. Bd3 {[%clk 0:00:12]}  Nd6 {[%clk 0:00:09]} 64. g4 {[%clk 0:00:12]}  Kd5 {[%clk 0:00:08]} 65. Bc2 {[%clk 0:00:10]}  Nc4+ {[%clk 0:00:08]} 66. Kf3 {[%clk 0:00:10]}  Kd4 {[%clk 0:00:08]} 67. g5 {[%clk 0:00:07]}  Nd2+ {[%clk 0:00:06]} 68. Kg4 {[%clk 0:00:07]}  Ke3 {[%clk 0:00:06]} 69. f5 {[%clk 0:00:06]}  gxf5+ {[%clk 0:00:02]} 70. Kxf5 {[%clk 0:00:06]}  Nf3 {[%clk 0:00:03]} 71. Kf6 {[%clk 0:00:07]}  Nxg5 {[%clk 0:00:03]} 72. Kxg5 {[%clk 0:00:07]}  f5 {[%clk 0:00:04]} 73. Kxf5 {[%clk 0:00:07]} 1/2-1/2


[Site "https://www.chess.com"]

[Event "Titled Tuesday Blitz February 15 Early 2022"]
[White "Rychagov, Andrey"]
[Black "Brunner, Nicolas"]
[WhiteFideId "4119932"]
[BlackFideId "620246"]
[WhiteElo "2500"]
[BlackElo "2372"]
[Result "1-0"]
[Round "06"]
[TimeControl "180+1"]
[Date "2022.02.15"]
[WhiteClock "0:02:11"]
[BlackClock "0:01:31"]

1. d4 {[%clk 0:03:00]}  d5 {[%clk 0:02:59]} 2. c4 {[%clk 0:03:00]}  e6 {[%clk 0:02:59]} 3. Nf3 {[%clk 0:03:01]}  Nf6 {[%clk 0:02:59]} 4. Nc3 {[%clk 0:03:00]}  Be7 {[%clk 0:02:59]} 5. Bf4 {[%clk 0:02:59]}  O-O {[%clk 0:02:57]} 6. e3 {[%clk 0:02:59]}  c5 {[%clk 0:02:53]} 7. dxc5 {[%clk 0:02:58]}  Bxc5 {[%clk 0:02:52]} 8. Qc2 {[%clk 0:02:57]}  Nc6 {[%clk 0:02:50]} 9. Be2 {[%clk 0:02:54]}  d4 {[%clk 0:02:26]} 10. Rd1 {[%clk 0:02:46]}  Qa5 {[%clk 0:01:51]} 11. exd4 {[%clk 0:02:37]}  Nxd4 {[%clk 0:01:41]} 12. Nxd4 {[%clk 0:02:36]}  Bxd4 {[%clk 0:01:40]} 13. Rxd4 {[%clk 0:02:36]}  e5 {[%clk 0:01:40]} 14. b4 {[%clk 0:02:22]}  Qxb4 {[%clk 0:01:40]} 15. Bxe5 {[%clk 0:02:22]}  Bf5 {[%clk 0:01:32]} 16. Qxf5 {[%clk 0:02:11]}  Qxc3+ {[%clk 0:01:31]} 17. Rd2 {[%clk 0:02:11]} 1-0


[Site "https://www.chess.com"]

[Event "Titled Tuesday Blitz February 15 Early 2022"]
[White "Safarli, Eltaj"]
[Black "Agibileg, Uurtsaikh"]
[WhiteFideId "13402129"]
[BlackFideId "4901606"]
[WhiteElo "2634"]
[BlackElo "2205"]
[Result "1-0"]
[Round "06"]
[TimeControl "180+1"]
[Date "2022.02.15"]
[WhiteClock "0:01:21"]
[BlackClock "0:00:38"]

1. e4 {[%clk 0:03:00]}  c5 {[%clk 0:02:59]} 2. Nc3 {[%clk 0:03:00]}  a6 {[%clk 0:02:58]} 3. g3 {[%clk 0:02:59]}  b5 {[%clk 0:02:58]} 4. Bg2 {[%clk 0:02:59]}  Bb7 {[%clk 0:02:59]} 5. d3 {[%clk 0:02:59]}  e6 {[%clk 0:02:59]} 6. Nh3 {[%clk 0:02:59]}  d5 {[%clk 0:02:59]} 7. O-O {[%clk 0:02:53]}  b4 {[%clk 0:02:57]} 8. exd5 {[%clk 0:02:31]}  bxc3 {[%clk 0:02:55]} 9. dxe6 {[%clk 0:02:31]}  Bxg2 {[%clk 0:02:56]} 10. exf7+ {[%clk 0:02:32]}  Kxf7 {[%clk 0:02:56]} 11. Ng5+ {[%clk 0:02:31]}  Kg6 {[%clk 0:02:47]} 12. Ne6 {[%clk 0:02:14]}  Qe7 {[%clk 0:02:22]} 13. Qg4+ {[%clk 0:01:59]}  Kf7 {[%clk 0:02:22]} 14. Ng5+ {[%clk 0:01:59]}  Kg6 {[%clk 0:02:00]} 15. Ne4+ {[%clk 0:01:37]}  Kf7 {[%clk 0:01:59]} 16. Kxg2 {[%clk 0:01:37]}  Qb7 {[%clk 0:01:43]} 17. Qf3+ {[%clk 0:01:33]}  Ke7 {[%clk 0:01:26]} 18. Bg5+ {[%clk 0:01:31]}  Nf6 {[%clk 0:01:26]} 19. Bxf6+ {[%clk 0:01:31]}  gxf6 {[%clk 0:01:23]} 20. Rae1 {[%clk 0:01:26]}  Kd8 {[%clk 0:00:53]} 21. Qxf6+ {[%clk 0:01:25]}  Qe7 {[%clk 0:00:49]} 22. Qxh8 {[%clk 0:01:24]}  Nd7 {[%clk 0:00:38]} 23. Nxc3 {[%clk 0:01:21]} 1-0


[Site "https://www.chess.com"]